[Event "Titled Tuesday Blitz May 31 Early 2022"]
[White "Mikhalsky, Vladimir"]
[Black "Melikhov, Evgeny V."]
[WhiteFideId "14144352"]
[BlackFideId "4122046"]
[WhiteElo "2301"]
[BlackElo "1931"]
[Result "1-0"]
[Round "10"]
[TimeControl "180+1"]
[Date "2022.06.01"]
[WhiteClock "0:00:12"]
[BlackClock "0:00:10"]

1. e4 {[%clk 0:03:00]}  e5 {[%clk 0:02:59]} 2. Nf3 {[%clk 0:03:00]}  Nc6 {[%clk 0:02:59]} 3. Bb5 {[%clk 0:03:00]}  a6 {[%clk 0:02:59]} 4. Ba4 {[%clk 0:02:59]}  Nf6 {[%clk 0:02:59]} 5. d3 {[%clk 0:02:58]}  b5 {[%clk 0:02:58]} 6. Bb3 {[%clk 0:02:57]}  Be7 {[%clk 0:02:59]} 7. a4 {[%clk 0:02:49]}  Rb8 {[%clk 0:02:55]} 8. axb5 {[%clk 0:02:48]}  axb5 {[%clk 0:02:55]} 9. O-O {[%clk 0:02:47]}  d6 {[%clk 0:02:54]} 10. h3 {[%clk 0:02:46]}  O-O {[%clk 0:02:53]} 11. Nc3 {[%clk 0:02:45]}  Be6 {[%clk 0:02:52]} 12. Bxe6 {[%clk 0:02:41]}  fxe6 {[%clk 0:02:52]} 13. Be3 {[%clk 0:02:27]}  Qd7 {[%clk 0:02:50]} 14. Ra6 {[%clk 0:02:25]}  Bd8 {[%clk 0:02:42]} 15. Ng5 {[%clk 0:02:15]}  Ne7 {[%clk 0:02:34]} 16. f4 {[%clk 0:02:01]}  exf4 {[%clk 0:02:30]} 17. Rxf4 {[%clk 0:01:56]}  Ng6 {[%clk 0:02:26]} 18. Rf1 {[%clk 0:01:45]}  h6 {[%clk 0:02:01]} 19. Nf3 {[%clk 0:01:43]}  b4 {[%clk 0:01:52]} 20. Ne2 {[%clk 0:01:41]}  c5 {[%clk 0:01:47]} 21. e5 {[%clk 0:01:38]}  Nd5 {[%clk 0:01:43]} 22. Rxd6 {[%clk 0:01:28]}  Nxe3 {[%clk 0:01:40]} 23. Rxd7 {[%clk 0:01:27]}  Nxd1 {[%clk 0:01:40]} 24. Rxd1 {[%clk 0:01:27]}  Rxf3 {[%clk 0:01:14]} 25. gxf3 {[%clk 0:01:24]}  Nxe5 {[%clk 0:01:14]} 26. Rd6 {[%clk 0:01:19]}  Nxf3+ {[%clk 0:01:13]} 27. Kg2 {[%clk 0:01:19]}  Nh4+ {[%clk 0:01:08]} 28. Kh1 {[%clk 0:01:19]}  Kf7 {[%clk 0:01:04]} 29. Nf4 {[%clk 0:01:14]}  Bf6 {[%clk 0:00:52]} 30. Rf1 {[%clk 0:01:02]}  Re8 {[%clk 0:00:41]} 31. Nh5 {[%clk 0:00:55]}  Nf5 {[%clk 0:00:38]} 32. Rd7+ {[%clk 0:00:50]}  Kg6 {[%clk 0:00:38]} 33. Nxf6 {[%clk 0:00:44]}  Kxf6 {[%clk 0:00:37]} 34. Rc7 {[%clk 0:00:42]}  Re7 {[%clk 0:00:32]} 35. Rxe7 {[%clk 0:00:36]}  Kxe7 {[%clk 0:00:32]} 36. Ra1 {[%clk 0:00:30]}  Ne3 {[%clk 0:00:24]} 37. c3 {[%clk 0:00:30]}  bxc3 {[%clk 0:00:23]} 38. bxc3 {[%clk 0:00:30]}  Nd5 {[%clk 0:00:23]} 39. Ra3 {[%clk 0:00:29]}  Nf4 {[%clk 0:00:23]} 40. Ra7+ {[%clk 0:00:26]}  Kf6 {[%clk 0:00:22]} 41. Rc7 {[%clk 0:00:24]}  Nxh3 {[%clk 0:00:22]} 42. Rxc5 {[%clk 0:00:21]}  Nf2+ {[%clk 0:00:22]} 43. Kg2 {[%clk 0:00:22]}  Nxd3 {[%clk 0:00:23]} 44. Rc8 {[%clk 0:00:22]}  Ke5 {[%clk 0:00:19]} 45. Kf3 {[%clk 0:00:22]}  Nf4 {[%clk 0:00:18]} 46. Rc7 {[%clk 0:00:18]}  g5 {[%clk 0:00:17]} 47. Rh7 {[%clk 0:00:18]}  Nd5 {[%clk 0:00:16]} 48. c4 {[%clk 0:00:17]}  Nb6 {[%clk 0:00:16]} 49. c5 {[%clk 0:00:17]}  Nd5 {[%clk 0:00:15]} 50. Rxh6 {[%clk 0:00:17]}  Kd4 {[%clk 0:00:14]} 51. c6 {[%clk 0:00:17]}  Kc5 {[%clk 0:00:14]} 52. Rxe6 {[%clk 0:00:16]}  Kb6 {[%clk 0:00:14]} 53. Ke4 {[%clk 0:00:14]}  Nb4 {[%clk 0:00:13]} 54. Kd4 {[%clk 0:00:13]}  g4 {[%clk 0:00:11]} 55. Rg6 {[%clk 0:00:12]}  g3 {[%clk 0:00:11]} 56. Kc4 {[%clk 0:00:12]}  Nxc6 {[%clk 0:00:11]} 57. Kd5 {[%clk 0:00:12]}  g2 {[%clk 0:00:10]} 58. Rxc6+ {[%clk 0:00:12]} 1-0


[Site "https://www.chess.com"]

[Event "Titled Tuesday Blitz May 31 Early 2022"]
[White "Namitbir Singh Walia"]
[Black "Bobomurodova, Maftuna"]
[WhiteFideId "35071068"]
[BlackFideId "14207400"]
[WhiteElo "1565"]
[BlackElo "1548"]
[Result "1/2-1/2"]
[Round "10"]
[TimeControl "180+1"]
[Date "2022.06.01"]
[WhiteClock "0:00:03"]
[BlackClock "0:00:13"]

1. d4 {[%clk 0:02:46]}  Nf6 {[%clk 0:02:59]} 2. c4 {[%clk 0:02:46]}  e6 {[%clk 0:02:59]} 3. g3 {[%clk 0:02:47]}  d5 {[%clk 0:02:57]} 4. Bg2 {[%clk 0:02:47]}  c5 {[%clk 0:02:53]} 5. cxd5 {[%clk 0:02:43]}  exd5 {[%clk 0:02:52]} 6. Nf3 {[%clk 0:02:41]}  Nc6 {[%clk 0:02:52]} 7. O-O {[%clk 0:02:41]}  Be7 {[%clk 0:02:51]} 8. dxc5 {[%clk 0:02:40]}  Bxc5 {[%clk 0:02:51]} 9. b3 {[%clk 0:02:40]}  O-O {[%clk 0:02:50]} 10. Bb2 {[%clk 0:02:41]}  Be6 {[%clk 0:02:49]} 11. e3 {[%clk 0:02:36]}  Be7 {[%clk 0:02:48]} 12. Nc3 {[%clk 0:02:34]}  a6 {[%clk 0:02:47]} 13. Ne2 {[%clk 0:02:34]}  Rc8 {[%clk 0:02:45]} 14. Rc1 {[%clk 0:02:33]}  Nb4 {[%clk 0:02:45]} 15. a3 {[%clk 0:02:29]}  Nc6 {[%clk 0:02:44]} 16. Ned4 {[%clk 0:02:29]}  Nxd4 {[%clk 0:02:43]} 17. Nxd4 {[%clk 0:02:29]}  Qd7 {[%clk 0:02:43]} 18. Nxe6 {[%clk 0:02:24]}  fxe6 {[%clk 0:02:43]} 19. Qd4 {[%clk 0:02:21]}  Bd6 {[%clk 0:02:32]} 20. Rfd1 {[%clk 0:02:11]}  Qe7 {[%clk 0:02:25]} 21. b4 {[%clk 0:02:08]}  Nd7 {[%clk 0:02:18]} 22. Bxd5 {[%clk 0:01:58]}  Be5 {[%clk 0:01:56]} 23. Qd2 {[%clk 0:01:13]}  exd5 {[%clk 0:01:28]} 24. Qxd5+ {[%clk 0:01:11]}  Kh8 {[%clk 0:01:27]} 25. Qxb7 {[%clk 0:00:51]}  Rxc1 {[%clk 0:01:23]} 26. Bxc1 {[%clk 0:00:52]}  Qf6 {[%clk 0:01:18]} 27. f4 {[%clk 0:00:50]}  Nb8 {[%clk 0:00:50]} 28. fxe5 {[%clk 0:00:49]}  Qxe5 {[%clk 0:00:46]} 29. Rf1 {[%clk 0:00:35]}  Rg8 {[%clk 0:00:42]} 30. Qg2 {[%clk 0:00:29]}  Nd7 {[%clk 0:00:38]} 31. Qd2 {[%clk 0:00:28]}  Nf6 {[%clk 0:00:38]} 32. Bb2 {[%clk 0:00:28]}  Ne4 {[%clk 0:00:35]} 33. Bxe5 {[%clk 0:00:17]}  Nxd2 {[%clk 0:00:36]} 34. Rf4 {[%clk 0:00:16]}  Re8 {[%clk 0:00:33]} 35. Bc3 {[%clk 0:00:14]}  Nb1 {[%clk 0:00:31]} 36. Bb2 {[%clk 0:00:13]}  Kg8 {[%clk 0:00:31]} 37. e4 {[%clk 0:00:14]}  Nd2 {[%clk 0:00:30]} 38. e5 {[%clk 0:00:14]}  g5 {[%clk 0:00:25]} 39. Rf2 {[%clk 0:00:08]}  Nc4 {[%clk 0:00:24]} 40. Re2 {[%clk 0:00:06]}  Nxb2 {[%clk 0:00:23]} 41. Rxb2 {[%clk 0:00:06]}  Rxe5 {[%clk 0:00:24]} 42. Kf2 {[%clk 0:00:07]}  Kf7 {[%clk 0:00:22]} 43. Re2 {[%clk 0:00:07]}  Rd5 {[%clk 0:00:21]} 44. Ke3 {[%clk 0:00:06]}  Ke6 {[%clk 0:00:19]} 45. Rd2 {[%clk 0:00:07]}  Re5+ {[%clk 0:00:19]} 46. Kf3 {[%clk 0:00:07]}  Kf7 {[%clk 0:00:15]} 47. Kg4 {[%clk 0:00:06]}  Re3 {[%clk 0:00:13]} 48. a4 {[%clk 0:00:04]}  Re4+ {[%clk 0:00:13]} 49. Kxg5 {[%clk 0:00:04]}  Rxb4 {[%clk 0:00:13]} 50. Rd7+ {[%clk 0:00:02]}  Kg8 {[%clk 0:00:13]} 51. Kh6 {[%clk 0:00:02]}  Rb6+ {[%clk 0:00:13]} 52. Kh5 {[%clk 0:00:02]}  Rb4 {[%clk 0:00:13]} 53. Rd8+ {[%clk 0:00:01]}  Kg7 {[%clk 0:00:13]} 54. Rd7+ {[%clk 0:00:02]}  Kg8 {[%clk 0:00:13]} 55. Kh6 {[%clk 0:00:03]}  Rb6+ {[%clk 0:00:13]} 56. Kh5 {[%clk 0:00:03]}  Rb4 {[%clk 0:00:13]} 1/2-1/2


[Site "https://www.chess.com"]

[Event "Titled Tuesday Blitz May 31 Early 2022"]
[White "Pranav, V"]
[Black "Maksimenko, Viktor"]
[WhiteFideId "25060783"]
[BlackFideId "13710478"]
[WhiteElo "2349"]
[BlackElo "2269"]
[Result "1/2-1/2"]
[Round "10"]
[TimeControl "180+1"]
[Date "2022.05.31"]
[WhiteClock "0:00:11"]
[BlackClock "0:00:51"]

1. e4 {[%clk 0:03:00]}  c6 {[%clk 0:02:59]} 2. d4 {[%clk 0:02:59]}  d5 {[%clk 0:02:59]} 3. e5 {[%clk 0:02:59]}  Bf5 {[%clk 0:02:59]} 4. Nf3 {[%clk 0:02:59]}  e6 {[%clk 0:02:59]} 5. Be2 {[%clk 0:02:58]}  c5 {[%clk 0:02:57]} 6. O-O {[%clk 0:02:57]}  Nc6 {[%clk 0:02:57]} 7. Be3 {[%clk 0:02:57]}  Qb6 {[%clk 0:02:56]} 8. Nc3 {[%clk 0:02:42]}  Qxb2 {[%clk 0:02:55]} 9. Nb5 {[%clk 0:02:41]}  c4 {[%clk 0:02:53]} 10. Qb1 {[%clk 0:02:39]}  Qxb1 {[%clk 0:02:42]} 11. Raxb1 {[%clk 0:02:39]}  O-O-O {[%clk 0:02:43]} 12. Bd1 {[%clk 0:02:19]}  a6 {[%clk 0:02:38]} 13. Nc3 {[%clk 0:02:17]}  Bb4 {[%clk 0:02:32]} 14. Na4 {[%clk 0:02:15]}  b5 {[%clk 0:02:31]} 15. Nb2 {[%clk 0:02:09]}  Nge7 {[%clk 0:02:30]} 16. Ng5 {[%clk 0:02:08]}  Rdf8 {[%clk 0:02:30]} 17. a4 {[%clk 0:02:08]}  Bc3 {[%clk 0:02:28]} 18. g4 {[%clk 0:02:03]}  Bg6 {[%clk 0:02:27]} 19. axb5 {[%clk 0:02:03]}  axb5 {[%clk 0:02:27]} 20. f4 {[%clk 0:02:01]}  Bxd4 {[%clk 0:02:18]} 21. Bxd4 {[%clk 0:01:57]}  Nxd4 {[%clk 0:02:18]} 22. Ra1 {[%clk 0:01:58]}  Kb7 {[%clk 0:02:17]} 23. c3 {[%clk 0:01:55]}  Ndc6 {[%clk 0:02:14]} 24. Bf3 {[%clk 0:01:55]}  h6 {[%clk 0:02:14]} 25. Nh3 {[%clk 0:01:54]}  Ra8 {[%clk 0:02:09]} 26. Rae1 {[%clk 0:01:31]}  Ra2 {[%clk 0:02:07]} 27. Nd1 {[%clk 0:01:31]}  Bd3 {[%clk 0:02:02]} 28. Rf2 {[%clk 0:01:31]}  Rha8 {[%clk 0:02:02]} 29. f5 {[%clk 0:01:30]}  Kb6 {[%clk 0:01:59]} 30. fxe6 {[%clk 0:01:21]}  fxe6 {[%clk 0:01:57]} 31. Nf4 {[%clk 0:01:22]}  Nd8 {[%clk 0:01:51]} 32. Nxd3 {[%clk 0:01:07]}  cxd3 {[%clk 0:01:52]} 33. Re3 {[%clk 0:01:07]}  Rxf2 {[%clk 0:01:48]} 34. Nxf2 {[%clk 0:01:07]}  Nec6 {[%clk 0:01:46]} 35. Nxd3 {[%clk 0:01:07]}  Ra3 {[%clk 0:01:46]} 36. Nf4 {[%clk 0:00:56]}  d4 {[%clk 0:01:44]} 37. Re1 {[%clk 0:00:52]}  Rxc3 {[%clk 0:01:44]} 38. Be4 {[%clk 0:00:47]}  b4 {[%clk 0:01:44]} 39. Kf2 {[%clk 0:00:42]}  b3 {[%clk 0:01:43]} 40. Ne2 {[%clk 0:00:40]}  Rc5 {[%clk 0:01:40]} 41. Rb1 {[%clk 0:00:39]}  Rb5 {[%clk 0:01:38]} 42. Nc1 {[%clk 0:00:25]}  Nxe5 {[%clk 0:01:37]} 43. Nxb3 {[%clk 0:00:24]}  Ndc6 {[%clk 0:01:34]} 44. Ke2 {[%clk 0:00:20]}  Rb4 {[%clk 0:01:27]} 45. Bc2 {[%clk 0:00:15]}  d3+ {[%clk 0:01:18]} 46. Bxd3 {[%clk 0:00:15]}  Nxd3 {[%clk 0:01:18]} 47. Kxd3 {[%clk 0:00:14]}  Na5 {[%clk 0:01:19]} 48. Nd2 {[%clk 0:00:14]}  Rxb1 {[%clk 0:01:15]} 49. Nxb1 {[%clk 0:00:15]}  Kc5 {[%clk 0:01:16]} 50. Ke4 {[%clk 0:00:15]}  Kd6 {[%clk 0:01:17]} 51. Nc3 {[%clk 0:00:14]}  Nb7 {[%clk 0:01:14]} 52. Nb5+ {[%clk 0:00:14]}  Ke7 {[%clk 0:01:14]} 53. Nd4 {[%clk 0:00:15]}  Kf6 {[%clk 0:01:13]} 54. h4 {[%clk 0:00:14]}  Nd6+ {[%clk 0:01:13]} 55. Ke3 {[%clk 0:00:13]}  g5 {[%clk 0:01:11]} 56. hxg5+ {[%clk 0:00:13]}  hxg5 {[%clk 0:01:00]} 57. Nf3 {[%clk 0:00:13]}  Nf7 {[%clk 0:00:57]} 58. Nd2 {[%clk 0:00:12]}  Ne5 {[%clk 0:00:57]} 59. Ne4+ {[%clk 0:00:13]}  Kg6 {[%clk 0:00:57]} 60. Nf2 {[%clk 0:00:14]}  Nf7 {[%clk 0:00:54]} 61. Ke4 {[%clk 0:00:12]}  Kf6 {[%clk 0:00:54]} 62. Kd4 {[%clk 0:00:12]}  Nh6 {[%clk 0:00:53]} 63. Ne4+ {[%clk 0:00:12]}  Ke7 {[%clk 0:00:53]} 64. Nxg5 {[%clk 0:00:11]}  Nxg4 {[%clk 0:00:51]} 1/2-1/2


[Site "https://www.chess.com"]

[Event "Titled Tuesday Blitz May 31 Early 2022"]
[White "Przybylski, Wojciech"]
[Black "Vovk, Orest"]
[WhiteFideId "1117599"]
[BlackFideId "14113490"]
[WhiteElo "2133"]
[BlackElo "2203"]
[Result "0-1"]
[Round "10"]
[TimeControl "180+1"]
[Date "2022.06.01"]
[WhiteClock "0:00:08"]
[BlackClock "0:00:07"]

1. d4 {[%clk 0:02:54]}  e5 {[%clk 0:02:55]} 2. e3 {[%clk 0:02:52]}  Nc6 {[%clk 0:02:55]} 3. Nf3 {[%clk 0:02:52]}  e4 {[%clk 0:02:44]} 4. Nfd2 {[%clk 0:02:51]}  Nf6 {[%clk 0:02:45]} 5. c4 {[%clk 0:02:50]}  d5 {[%clk 0:02:42]} 6. Nc3 {[%clk 0:02:49]}  dxc4 {[%clk 0:02:39]} 7. Bxc4 {[%clk 0:02:48]}  Bb4 {[%clk 0:02:34]} 8. a3 {[%clk 0:02:43]}  Bxc3 {[%clk 0:02:30]} 9. bxc3 {[%clk 0:02:44]}  O-O {[%clk 0:02:30]} 10. h3 {[%clk 0:02:43]}  Na5 {[%clk 0:02:11]} 11. Be2 {[%clk 0:02:39]}  Nd5 {[%clk 0:02:07]} 12. Qc2 {[%clk 0:02:35]}  f5 {[%clk 0:02:07]} 13. c4 {[%clk 0:02:34]}  Nf6 {[%clk 0:02:00]} 14. Bb2 {[%clk 0:02:29]}  b6 {[%clk 0:01:58]} 15. O-O {[%clk 0:02:27]}  c5 {[%clk 0:01:54]} 16. d5 {[%clk 0:02:26]}  Qd6 {[%clk 0:01:47]} 17. f4 {[%clk 0:02:16]}  Bd7 {[%clk 0:01:43]} 18. Be5 {[%clk 0:02:05]}  Qe7 {[%clk 0:01:40]} 19. Rad1 {[%clk 0:02:00]}  Be8 {[%clk 0:01:34]} 20. g4 {[%clk 0:01:52]}  fxg4 {[%clk 0:01:29]} 21. hxg4 {[%clk 0:01:51]}  Bd7 {[%clk 0:01:04]} 22. d6 {[%clk 0:01:46]}  Qe6 {[%clk 0:00:57]} 23. Nxe4 {[%clk 0:01:43]}  Nxg4 {[%clk 0:00:48]} 24. Ng5 {[%clk 0:01:43]}  Qh6 {[%clk 0:00:48]} 25. Bxg4 {[%clk 0:01:35]}  Bxg4 {[%clk 0:00:49]} 26. Rd2 {[%clk 0:01:33]}  Qg6 {[%clk 0:00:40]} 27. Qxg6 {[%clk 0:01:20]}  hxg6 {[%clk 0:00:41]} 28. Rc1 {[%clk 0:01:18]}  Nb3 {[%clk 0:00:39]} 29. Rcc2 {[%clk 0:01:18]}  Nxd2 {[%clk 0:00:38]} 30. Rxd2 {[%clk 0:01:18]}  Rad8 {[%clk 0:00:29]} 31. Kg2 {[%clk 0:01:17]}  Bc8 {[%clk 0:00:27]} 32. e4 {[%clk 0:01:16]}  Ba6 {[%clk 0:00:22]} 33. Rc2 {[%clk 0:01:11]}  Rf6 {[%clk 0:00:20]} 34. Kf3 {[%clk 0:01:05]}  Rfxd6 {[%clk 0:00:18]} 35. Bxd6 {[%clk 0:01:05]}  Rxd6 {[%clk 0:00:19]} 36. Ne6 {[%clk 0:01:00]}  Rxe6 {[%clk 0:00:18]} 37. e5 {[%clk 0:01:00]}  Re8 {[%clk 0:00:18]} 38. Kg4 {[%clk 0:01:00]}  Rd8 {[%clk 0:00:17]} 39. Kg5 {[%clk 0:00:46]}  Kf7 {[%clk 0:00:17]} 40. Re2 {[%clk 0:00:46]}  Bc8 {[%clk 0:00:16]} 41. Kh4 {[%clk 0:00:38]}  Rd4 {[%clk 0:00:16]} 42. Kg3 {[%clk 0:00:38]}  Be6 {[%clk 0:00:16]} 43. Rh2 {[%clk 0:00:36]}  Rxc4 {[%clk 0:00:16]} 44. Rh8 {[%clk 0:00:36]}  Rc3+ {[%clk 0:00:16]} 45. Kf2 {[%clk 0:00:36]}  Rxa3 {[%clk 0:00:14]} 46. Rb8 {[%clk 0:00:36]}  Bd5 {[%clk 0:00:14]} 47. Rd8 {[%clk 0:00:35]}  Be4 {[%clk 0:00:11]} 48. Rd7+ {[%clk 0:00:26]}  Ke6 {[%clk 0:00:12]} 49. Rxg7 {[%clk 0:00:25]}  Rf3+ {[%clk 0:00:12]} 50. Ke2 {[%clk 0:00:26]}  Rxf4 {[%clk 0:00:13]} 51. Ke3 {[%clk 0:00:25]}  Kxe5 {[%clk 0:00:11]} 52. Re7+ {[%clk 0:00:24]}  Kd6 {[%clk 0:00:11]} 53. Rxa7 {[%clk 0:00:24]}  Rh4 {[%clk 0:00:11]} 54. Ra6 {[%clk 0:00:23]}  Kc6 {[%clk 0:00:11]} 55. Ra7 {[%clk 0:00:23]}  Bf5 {[%clk 0:00:11]} 56. Ra8 {[%clk 0:00:23]}  Re4+ {[%clk 0:00:12]} 57. Kd2 {[%clk 0:00:22]}  Re6 {[%clk 0:00:13]} 58. Kc3 {[%clk 0:00:22]}  Rd6 {[%clk 0:00:14]} 59. Rf8 {[%clk 0:00:21]}  Rd3+ {[%clk 0:00:14]} 60. Kb2 {[%clk 0:00:20]}  Kb5 {[%clk 0:00:14]} 61. Re8 {[%clk 0:00:18]}  Rh3 {[%clk 0:00:15]} 62. Ka2 {[%clk 0:00:17]}  c4 {[%clk 0:00:15]} 63. Re2 {[%clk 0:00:15]}  Ka4 {[%clk 0:00:13]} 64. Re8 {[%clk 0:00:12]}  Rh2+ {[%clk 0:00:13]} 65. Ka1 {[%clk 0:00:12]}  Rh1+ {[%clk 0:00:12]} 66. Kb2 {[%clk 0:00:12]}  b5 {[%clk 0:00:10]} 67. Kc3 {[%clk 0:00:11]}  Rh3+ {[%clk 0:00:09]} 68. Kd4 {[%clk 0:00:11]}  Rd3+ {[%clk 0:00:09]} 69. Kc5 {[%clk 0:00:11]}  Kb3 {[%clk 0:00:09]} 70. Re1 {[%clk 0:00:11]}  Rd8 {[%clk 0:00:08]} 71. Kxb5 {[%clk 0:00:08]}  c3 {[%clk 0:00:08]} 72. Rd1 {[%clk 0:00:07]}  Rxd1 {[%clk 0:00:07]} 73. Kc5 {[%clk 0:00:08]}  c2 {[%clk 0:00:07]} 74. Kb5 {[%clk 0:00:08]}  c1=Q {[%clk 0:00:07]} 75. Ka5 {[%clk 0:00:09]}  Qc5+ {[%clk 0:00:07]} 76. Ka6 {[%clk 0:00:09]}  Ra1+ {[%clk 0:00:07]} 77. Kb7 {[%clk 0:00:08]}  Ra7+ {[%clk 0:00:07]} 78. Kb8 {[%clk 0:00:08]}  Qc7# {[%clk 0:00:07]} 0-1


[Site "https://www.chess.com"]

[Event "Titled Tuesday Blitz May 31 Early 2022"]
[White "Sjugirov, Sanan"]
[Black "Hasangatin, Ramil"]
[WhiteFideId "4189302"]
[BlackFideId "4122160"]
[WhiteElo "2602"]
[BlackElo "2399"]
[Result "1-0"]
[Round "10"]
[TimeControl "180+1"]
[Date "2022.05.31"]
[WhiteClock "0:00:08"]
[BlackClock "0:00:04"]

1. e4 {[%clk 0:03:00]}  d5 {[%clk 0:02:59]} 2. exd5 {[%clk 0:03:00]}  Qxd5 {[%clk 0:03:00]} 3. Nc3 {[%clk 0:03:01]}  Qd6 {[%clk 0:03:01]} 4. d4 {[%clk 0:03:01]}  Nf6 {[%clk 0:03:01]} 5. Nf3 {[%clk 0:03:02]}  c6 {[%clk 0:03:02]} 6. Ne5 {[%clk 0:02:54]}  Nbd7 {[%clk 0:03:02]} 7. Nc4 {[%clk 0:02:55]}  Qc7 {[%clk 0:03:01]} 8. a4 {[%clk 0:02:55]}  a5 {[%clk 0:02:59]} 9. g3 {[%clk 0:02:50]}  Nb6 {[%clk 0:02:58]} 10. Ne5 {[%clk 0:02:47]}  Be6 {[%clk 0:02:53]} 11. Bg2 {[%clk 0:02:46]}  g6 {[%clk 0:02:53]} 12. O-O {[%clk 0:02:46]}  Bg7 {[%clk 0:02:53]} 13. Nd3 {[%clk 0:02:40]}  O-O {[%clk 0:02:51]} 14. Nc5 {[%clk 0:02:36]}  Bg4 {[%clk 0:02:46]} 15. Qe1 {[%clk 0:02:22]}  Nbd5 {[%clk 0:02:45]} 16. Nxd5 {[%clk 0:02:20]}  cxd5 {[%clk 0:02:45]} 17. Bf4 {[%clk 0:02:18]}  Qc6 {[%clk 0:02:45]} 18. c3 {[%clk 0:02:15]}  b6 {[%clk 0:02:44]} 19. Nd3 {[%clk 0:02:15]}  Qc4 {[%clk 0:02:29]} 20. Ne5 {[%clk 0:02:10]}  Qb3 {[%clk 0:02:20]} 21. Nxg4 {[%clk 0:02:07]}  Nxg4 {[%clk 0:02:21]} 22. Qe2 {[%clk 0:02:03]}  Nf6 {[%clk 0:02:19]} 23. Ra3 {[%clk 0:02:02]}  Qc4 {[%clk 0:02:15]} 24. Qxc4 {[%clk 0:02:02]}  dxc4 {[%clk 0:02:16]} 25. Bxa8 {[%clk 0:02:02]}  Rxa8 {[%clk 0:02:17]} 26. Be5 {[%clk 0:01:36]}  Nd5 {[%clk 0:02:17]} 27. Bxg7 {[%clk 0:01:37]}  Kxg7 {[%clk 0:02:18]} 28. Re1 {[%clk 0:01:36]}  e6 {[%clk 0:02:16]} 29. Kg2 {[%clk 0:01:36]}  Rc8 {[%clk 0:02:15]} 30. Raa1 {[%clk 0:01:35]}  Rb8 {[%clk 0:02:12]} 31. Re2 {[%clk 0:01:34]}  g5 {[%clk 0:02:09]} 32. Rh1 {[%clk 0:01:32]}  h5 {[%clk 0:02:07]} 33. Re5 {[%clk 0:01:29]}  Kg6 {[%clk 0:02:07]} 34. h4 {[%clk 0:01:18]}  g4 {[%clk 0:02:07]} 35. Rhe1 {[%clk 0:01:18]}  b5 {[%clk 0:01:49]} 36. axb5 {[%clk 0:01:10]}  Rxb5 {[%clk 0:01:48]} 37. R5e2 {[%clk 0:01:10]}  a4 {[%clk 0:01:13]} 38. Ra1 {[%clk 0:01:09]}  Nb6 {[%clk 0:01:13]} 39. Kf1 {[%clk 0:01:05]}  f6 {[%clk 0:01:06]} 40. Ke1 {[%clk 0:01:01]}  Kf7 {[%clk 0:01:05]} 41. Kd1 {[%clk 0:01:01]}  Ke7 {[%clk 0:01:04]} 42. Kc2 {[%clk 0:01:01]}  Kd6 {[%clk 0:01:05]} 43. Rae1 {[%clk 0:01:00]}  e5 {[%clk 0:01:03]} 44. dxe5+ {[%clk 0:01:01]}  fxe5 {[%clk 0:01:03]} 45. Rd1+ {[%clk 0:01:00]}  Nd5 {[%clk 0:00:49]} 46. Re4 {[%clk 0:00:59]}  Rc5 {[%clk 0:00:49]} 47. Rde1 {[%clk 0:00:50]}  Nb6 {[%clk 0:00:42]} 48. Rf1 {[%clk 0:00:50]}  Kd5 {[%clk 0:00:41]} 49. Re2 {[%clk 0:00:49]}  Ke6 {[%clk 0:00:29]} 50. f3 {[%clk 0:00:46]}  gxf3 {[%clk 0:00:29]} 51. Rxf3 {[%clk 0:00:47]}  Nd5 {[%clk 0:00:29]} 52. Rf8 {[%clk 0:00:45]}  Nf6 {[%clk 0:00:23]} 53. Ra8 {[%clk 0:00:43]}  Kf5 {[%clk 0:00:17]} 54. Rxa4 {[%clk 0:00:42]}  Ne4 {[%clk 0:00:17]} 55. Re3 {[%clk 0:00:39]}  Nf6 {[%clk 0:00:12]} 56. Ra8 {[%clk 0:00:38]}  Nd5 {[%clk 0:00:11]} 57. Re2 {[%clk 0:00:36]}  e4 {[%clk 0:00:10]} 58. Rf8+ {[%clk 0:00:35]}  Kg4 {[%clk 0:00:10]} 59. Rxe4+ {[%clk 0:00:34]}  Kxg3 {[%clk 0:00:10]} 60. Kd2 {[%clk 0:00:15]}  Nc7 {[%clk 0:00:11]} 61. Rg8+ {[%clk 0:00:12]}  Kf3 {[%clk 0:00:10]} 62. Re3+ {[%clk 0:00:08]}  Kf4 {[%clk 0:00:09]} 63. Re1 {[%clk 0:00:08]}  Rd5+ {[%clk 0:00:09]} 64. Kc2 {[%clk 0:00:08]}  Nb5 {[%clk 0:00:07]} 65. Rf8+ {[%clk 0:00:08]}  Kg3 {[%clk 0:00:07]} 66. Re3+ {[%clk 0:00:08]}  Kg2 {[%clk 0:00:07]} 67. Re2+ {[%clk 0:00:07]}  Kg3 {[%clk 0:00:07]} 68. Re3+ {[%clk 0:00:07]}  Kg2 {[%clk 0:00:08]} 69. Re4 {[%clk 0:00:08]}  Nd6 {[%clk 0:00:07]} 70. Rd4 {[%clk 0:00:08]}  Rxd4 {[%clk 0:00:05]} 71. cxd4 {[%clk 0:00:09]}  Kg3 {[%clk 0:00:05]} 72. d5 {[%clk 0:00:09]}  Kxh4 {[%clk 0:00:05]} 73. Rf6 {[%clk 0:00:08]}  Ne4 {[%clk 0:00:05]} 74. Rf4+ {[%clk 0:00:08]}  Kg5 {[%clk 0:00:04]} 75. Rxe4 {[%clk 0:00:09]}  h4 {[%clk 0:00:04]} 76. Rxh4 {[%clk 0:00:08]} 1-0


[Site "https://www.chess.com"]